fUSD/lending_fUSD_20240611
["ID","MTS","AMOUNT","RATE_DAILY","PERIOD"]
[329139204,1718132557866,-453.49654734,0.00012359,2]
[329139205,1718132557893,-1546.50345266,0.00013695,2]
[329139206,1718132568965,-2000.0,0.00013695,2]
[329139207,1718132705530,165.0,0.00025,25]
[329139208,1718132852183,-1625.52061624,0.00013409,2]
[329139209,1718132852210,-442.29329106,0.00013409,2]
[329139210,1718132974642,300.0,0.00027736,120]
[329139232,1718133032439,-155.0,0.00010954,2]
[329139233,1718133032450,-1218.8725,0.00010954,2]
[329139234,1718133032530,-30.69084718,0.00010954,2]
[329139235,1718133032541,-269.31785667,0.00010954,2]
[329139236,1718133032551,-119.69129615,0.00010955,2]
[329139237,1718133032566,-244.51447454,0.00010955,2]
[329139238,1718133032576,-1959.96533736,0.00010955,2]
[329139239,1718133032592,-235.05365447,0.00010955,2]
[329139240,1718133032603,-87.66584053,0.00010955,2]
[329139241,1718133032617,-67.33415947,0.00010955,2]
[329139242,1718133032630,-1105.87666753,0.00010955,2]
[329139243,1718133032655,-286.18192272,0.00010955,2]
[329139244,1718133032678,-334.50747262,0.00010955,2]
[329139245,1718133032692,-1096.69344267,0.00010955,2]
[329139246,1718133032702,-158.39893901,0.00010956,2]
[329139247,1718133032712,-537.90748487,0.00010956,2]
[329139248,1718133032723,-155.0,0.00010957,2]
[329139249,1718133032734,-156.73863442,0.00010957,2]
[329139250,1718133032744,-161.63825425,0.00010957,2]
[329139251,1718133032755,-155.0,0.00010958,2]
[329139252,1718133032765,-201.76,0.00010959,2]
[329139253,1718133032776,-168.13,0.00010959,2]
[329139254,1718133032787,-840.67,0.00010959,2]
[329139255,1718133032797,-9222.56534114,0.00012365,2]
[329139256,1718133032807,-2000.25333624,0.00012366,2]
[329139257,1718133032817,-5584.2730595,0.00012366,2]
[329139258,1718133032828,-522.69878769,0.00012367,2]
[329139259,1718133032839,-300.0,0.00012367,2]
[329139260,1718133032849,-205.70870175,0.00012368,2]
[329139261,1718133032859,-155.0,0.00012368,2]
[329139262,1718133032869,-163.3366024,0.00012368,2]
[329139263,1718133032879,-545.9510705,0.00012368,2]
[329139264,1718133032890,-1796.28532413,0.00012368,2]
[329139265,1718133032901,-4616.24077475,0.00012368,2]
[329139266,1718133032911,-1253.59956446,0.00012369,2]
[329139267,1718133032923,-268.79574159,0.00012369,2]
[329139268,1718133032934,-328.09103155,0.00012369,2]
[329139269,1718133032946,-155.0,0.00012369,2]
[329139270,1718133032957,-296.86150818,0.00012369,2]
[329139271,1718133032968,-263.89187326,0.00012369,2]
[329139272,1718133032978,-715.98008293,0.00012369,2]
[329139273,1718133032988,-176.54095284,0.00012369,2]
[329139274,1718133032998,-786.5384728,0.0001237,2]
[329139275,1718133033008,-625.97046574,0.0001237,2]
[329139276,1718133033021,-2337.22101959,0.0001237,2]
[329139277,1718133033032,-1335.44396739,0.0001237,2]
[329139278,1718133033046,-2957.1276938,0.0001237,2]
[329139279,1718133033057,-886.26256298,0.0001237,2]
[329139280,1718133033069,-155.0,0.00012371,2]
[329139281,1718133033079,-659.17833501,0.00012371,2]
[329139282,1718133033091,-2369.42831983,0.00012371,2]
[329139283,1718133033101,-4238.20791159,0.00012372,2]
[329139284,1718133033111,-1302.76719431,0.0001247,2]
[329139285,1718133033123,-150.0,0.00012473,2]
[329139286,1718133033133,-150.0,0.00012473,2]
[329139287,1718133033145,-5684.67242801,0.00012478,2]
[329139288,1718133033157,-22239.32629279,0.00012479,2]
[329139289,1718133033168,-156.3642,0.00013209,2]
[329139290,1718133033180,-156.63790936,0.00013304,2]
[329139291,1718133033192,-242.22,0.00013306,2]
[329139292,1718133033202,-59587.37,0.00013306,2]
[329139293,1718133033212,-707.28,0.00013309,2]
[329139294,1718133033223,-17867.6928451,0.00013409,2]
[329139295,1718133033234,-155.0,0.00013409,2]
[329139296,1718133033247,-410.83715221,0.00013409,2]
[329139297,1718133033258,-788.68901012,0.00013421,2]
[329139298,1718133033270,-300.0,0.00013571,2]
[329139299,1718133033280,-159.85756082,0.00013617,2]
[329139300,1718133033292,-199.29728357,0.00013711,2]
[329139301,1718133033302,-210.0,0.0001372,2]
[329139302,1718133033313,-210.0,0.0001372,2]
[329139303,1718133033323,-1235.15,0.00013794,2]
[329139304,1718133033333,-531.15011943,0.00013795,2]
[329139305,1718133033344,-1236.2806,0.000138,2]
[329139306,1718133033354,-500.0,0.00013823,2]
[329139307,1718133033363,-150.0,0.00013823,2]
[329139308,1718133033373,-155.94476457,0.000139,2]
[329139309,1718133033392,-150.99,0.000139,2]
[329139310,1718133033402,-499.99,0.000139,2]
[329139311,1718133033413,-496.97849707,0.00013928,2]
[329139312,1718133033423,-200.0,0.00013937,2]
[329139313,1718133033434,-751.9144439,0.00014453,2]
[329139314,1718133033445,-167.54,0.00014743,2]
[329139315,1718133033455,-2451.28,0.00014829,2]
[329139316,1718133033466,-159.85756079,0.00014874,2]
[329139317,1718133033476,-578.81,0.00014956,2]
[329139318,1718133033486,-293.0,0.00015092,2]
[329139319,1718133033497,-293.0,0.00015092,2]
[329139320,1718133033508,-1346.07103798,0.00015649,2]
[329139321,1718133033519,-1623.23916283,0.00015649,2]
[329139322,1718133033530,-183.64035359,0.00015649,2]
[329139323,1718133033541,-518.83621496,0.00015649,2]
[329139324,1718133033553,-719.5469304,0.00015649,2]
[329139325,1718133033564,-391.70291089,0.00015649,2]
[329139326,1718133033577,-1277.45304415,0.00015649,2]
[329139327,1718133033589,-155.0,0.00015649,2]
[329139328,1718133033599,-155.0,0.0001565,2]
[329139329,1718133033610,-3893.9184449,0.0001565,2]
[329139330,1718133033621,-3066.55001275,0.0001565,2]
[329139331,1718133033631,-7546.70811292,0.00015651,2]
[329139332,1718133033641,-539.65,0.00015651,6]
[329139333,1718133033652,-307.41147167,0.00015752,2]
[329139334,1718133033664,-302.55336961,0.00015752,2]
[329139335,1718133033674,-161.56,0.00016077,2]
[329139336,1718133033685,-161.56,0.00016088,2]
[329139337,1718133033696,-161.56,0.000161,2]
[329139338,1718133033706,-161.56,0.00016111,2]
[329139339,1718133033716,-161.56,0.00016123,2]
[329139340,1718133033726,-159.85756079,0.0001613,2]
[329139341,1718133033736,-161.56,0.00016134,2]
[329139342,1718133033746,-161.56,0.00016145,2]
[329139343,1718133033756,-250.0,0.00016156,2]
[329139344,1718133033767,-161.56,0.00016157,2]
[329139345,1718133033777,-420.19,0.00016309,2]
[329139346,1718133033787,-200.0,0.00016361,2]
[329139347,1718133033797,-250.0,0.00016414,2]
[329139348,1718133033807,-3213.91,0.00016482,2]
[329139349,1718133033817,-23900.0,0.00016578,2]
[329139350,1718133033828,-2751.0,0.00016644,2]
[329139351,1718133033838,-200.0,0.00016649,2]
[329139352,1718133033848,-1645.26,0.00016655,2]
[329139353,1718133033858,-5155.46,0.00016665,2]
[329139354,1718133033868,-500.0,0.00016677,2]
[329139355,1718133033878,-533.27,0.00016775,2]
[329139356,1718133033888,-1669.16,0.00016781,2]
[329139357,1718133033898,-170.58,0.0001679,2]
[329139358,1718133033908,-10212.3,0.00016801,2]
[329139359,1718133033919,-155.94476457,0.00016904,2]
[329139360,1718133033930,-1852.42,0.00016998,2]
[329139361,1718133033940,-420.19,0.00017124,2]
[329139362,1718133033951,-160.43,0.00017166,2]
[329139363,1718133033961,-167.5,0.00017217,2]
[329139364,1718133033974,-578.81,0.0001722,2]
[329139365,1718133033986,-159.85756079,0.00017387,2]
[329139366,1718133033997,-692.22,0.00017496,2]
[329139367,1718133034008,-692.22,0.000175,2]
[329139368,1718133034018,-692.22,0.00017505,2]
[329139369,1718133034028,-692.22,0.00017509,2]
[329139370,1718133034038,-692.22,0.00017514,2]
[329139371,1718133034048,-692.22,0.00017519,2]
[329139372,1718133034058,-692.22,0.00017523,2]
[329139373,1718133034068,-692.22,0.00017528,2]
[329139374,1718133034079,-692.22,0.00017532,2]
[329139375,1718133034089,-692.22,0.00017537,2]
[329139376,1718133034099,-692.22,0.00017542,2]
[329139377,1718133034109,-692.22,0.00017546,2]
[329139378,1718133034120,-692.22,0.00017551,2]
[329139379,1718133034130,-692.22,0.00017555,2]
[329139380,1718133034141,-692.22,0.0001756,2]
[329139381,1718133034151,-692.22,0.00017565,2]
[329139382,1718133034163,-692.22,0.00017569,2]
[329139383,1718133034177,-692.22,0.00017574,2]
[329139384,1718133034188,-692.22,0.00017579,2]
[329139385,1718133034200,-692.22,0.00017583,2]
[329139386,1718133034210,-1000.0,0.00017648,2]
[329139387,1718133034220,-167.02,0.00017775,2]
[329139388,1718133034231,-420.19,0.0001794,2]
[329139389,1718133034241,-150.0,0.00018046,2]
[329139390,1718133034251,-160.43,0.00018061,2]
[329139391,1718133034261,-172.22,0.00018447,2]
[329139392,1718133034271,-159.85756079,0.00018643,2]
[329139393,1718133034282,-896.16003082,0.00018738,2]
[329139394,1718133034292,-420.19,0.00018755,2]
[329139395,1718133034303,-2534.0,0.000188,2]
[329139396,1718133034313,-752.03196948,0.00019052,2]
[329139397,1718133034323,-287.25106551,0.00019056,2]
[329139398,1718133034333,-500.0,0.00019178,2]
[329139399,1718133034343,-384.92611895,0.00019178,2]
[329139400,1718133034354,-211.02563666,0.00019178,2]
[329139401,1718133034364,-500.0,0.00019178,2]
[329139402,1718133034374,-500.0,0.00019178,2]
[329139403,1718133034396,-500.0,0.00019178,2]
[329139404,1718133034410,-500.0,0.00019178,2]
[329139405,1718133034421,-500.0,0.00019178,2]
[329139406,1718133034432,-3213.91,0.00019221,2]
[329139407,1718133034442,-156.16625566,0.00019323,2]
[329139408,1718133034455,-150.0,0.00019416,2]
[329139409,1718133034465,-578.81,0.00019484,2]
[329139410,1718133034479,-1000.0,0.00019539,2]
[329139411,1718133034489,-420.19,0.00019571,2]
[329139412,1718133034500,-1000.0,0.00019854,2]
[329139413,1718133034511,-159.85756079,0.000199,2]
[329139414,1718133034521,-155.94476457,0.00019909,2]
[329139415,1718133034532,-44570.2,0.0002,2]
[329139416,1718133034542,-1981.97860415,0.0002,2]
[329139417,1718133034554,-155.0,0.0002,2]
[329139418,1718133034565,-262.96555812,0.0002,2]
[329139419,1718133034576,-364.45870332,0.0002,2]
[329139420,1718133034587,-226.7178388,0.000201,2]
[329139421,1718133034597,-600.0,0.000207,7]
[329139422,1718133034608,-167.02,0.00020709,2]
[329139423,1718133034618,-1300.0,0.000208,7]
[329139424,1718133034628,-1900.0,0.000209,7]
[329139425,1718133034639,-319.44,0.00020934,2]
[329139426,1718133034649,-300.75,0.00020934,2]
[329139427,1718133034659,-151.33,0.00020934,2]
[329139428,1718133034671,-300.93,0.00020934,2]
[329139429,1718133034683,-526.55,0.00020934,2]
[329139430,1718133034693,-150.0,0.00020934,2]
[329139431,1718133034705,-150.0,0.00020934,2]
[329139432,1718133034716,-526.55,0.00020934,2]
[329139433,1718133034726,-150.0,0.00020934,2]
[329139434,1718133034737,-164.25,0.00020934,2]
[329139435,1718133034747,-150.0,0.00020934,2]
[329139436,1718133034757,-353.53,0.00020934,2]
[329139437,1718133034767,-150.0,0.00020934,2]
[329139438,1718133034777,-353.53,0.00020934,2]
[329139439,1718133034787,-300.0,0.00020934,2]
[329139440,1718133034797,-150.0,0.00020934,2]
[329139441,1718133034808,-200.978798,0.00021,2]
[329139442,1718133034818,-320.86450282,0.00021078,2]
[329139443,1718133034828,-679.85162798,0.00021101,2]
[329139444,1718133034839,-1144.98069744,0.0002117,2]
[329139445,1718133034849,-41251.329,0.00021171,2]
[329139446,1718133034860,-188.20708037,0.00021171,2]
[329139447,1718133034870,-217.02722813,0.00021174,2]
[329139448,1718133034880,-599.27979208,0.00021174,2]
[329139449,1718133034891,-186.30175631,0.00021174,2]
[329139450,1718133034901,-191.35915009,0.00021174,2]
[329139451,1718133034911,-335.38617073,0.00021174,7]
[329139452,1718133034922,-155.0,0.00021174,2]
[329139453,1718133034932,-155.35592478,0.00021174,2]
[329139454,1718133034943,-7896.8672671,0.00021174,2]
[329139455,1718133034953,-241.02418219,0.00021175,2]
[329139456,1718133034964,-185.52905548,0.00021175,2]
[329139457,1718133034974,-95108.00819652,0.00021176,2]
[329139458,1718133034984,-95108.00819652,0.00021178,2]
[329139459,1718133034994,-183.86806516,0.00021195,2]
[329139460,1718133035004,-174.71702799,0.00021197,2]
[329139461,1718133035014,-622.45562977,0.00021211,2]
[329139462,1718133035024,-95108.00819652,0.00021221,2]
[329139463,1718133035035,-679.85162795,0.0002124,2]
[329139464,1718133035045,-252.46478504,0.00021255,2]
[329139465,1718133035055,-156.15411394,0.00021257,2]
[329139466,1718133035065,-2666.4312,0.0002126,2]
[329139467,1718133035075,-151.99,0.00021261,2]
[329139468,1718133035085,-118972.9018,0.00021271,2]
[329139469,1718133035096,-4891.7275,0.00021271,2]
[329139470,1718133035106,-802.6103,0.00021271,2]
[329139471,1718133035118,-7500.0,0.00021271,2]
[329139472,1718133035129,-151.99,0.00021278,2]
[329139473,1718133035141,-95108.00819652,0.00021286,2]
[329139474,1718133035152,-95108.00819652,0.00021288,2]
[329139475,1718133035164,-382.96459913,0.00021295,2]
[329139476,1718133035175,-95108.00819652,0.00021297,2]
[329139477,1718133035187,-151.99,0.00021361,2]
[329139478,1718133035199,-151.99,0.00021361,2]
[329139479,1718133035209,-144060.24735458,0.00021371,2]
[329139480,1718133035964,-754.74831959,0.00021371,2]
[329139481,1718133035978,-540.396828,0.00021371,2]
[329139482,1718133035991,-399.20391486,0.00021371,2]
[329139483,1718133036004,-745.727194,0.00021371,2]
[329139484,1718133036032,-57417.23667119,0.00021371,2]
[329139485,1718133036046,-41082.43971778,0.00021371,2]
[329139486,1718133036058,-3162.122,0.00021372,2]
[329139487,1718133036070,-1000.0,0.00021372,2]
[329139488,1718133036081,-500.0,0.00021372,2]
[329139489,1718133036092,-20106.7221,0.00021372,2]
[329139490,1718133036103,-25640.68667186,0.00021372,2]
[329139491,1718133036116,-74359.31332814,0.00021372,2]
[329139492,1718133036127,-151.99,0.00021375,2]
[329139493,1718133036138,-151.99,0.00021375,2]
[329139494,1718133036149,-679.85162795,0.00021379,2]
[329139495,1718133036159,-150.88474258,0.0002138,3]
[329139496,1718133036170,-3625.39762921,0.0002138,2]
[329139497,1718133036180,-550.73310212,0.0002138,2]
[329139498,1718133036192,-71.72252765,0.0002138,2]
[329139499,1718133036210,-151.99,0.0002138,2]
[329139500,1718133036221,-203069.61438404,0.00021385,3]
[329139501,1718133036234,-345.5,0.00021385,3]
[329139502,1718133036246,-804.43551989,0.00021385,3]
[329139503,1718133036271,-1014.49527773,0.00021385,3]
[329139504,1718133036417,-621.28822806,0.00021385,3]
[329139505,1718133036431,-5368.65254949,0.00021385,3]
[329139506,1718133036444,-3144.07254094,0.00021385,3]
[329139507,1718133036564,-4698.92261733,0.00021385,3]
[329139520,1718133038757,-0.00135219,0.00010953,2]
[329139521,1718133038769,-186.11457153,0.00010953,2]
[329139522,1718133038780,-380.02010582,0.00021179,2]
[329139523,1718133038791,-314.98864362,0.00021179,2]
[329139524,1718133038802,-24647.28988628,0.00021385,3]
[329139525,1718133038812,-151.99,0.00021387,2]
[329139526,1718133038823,-151.99,0.00021387,2]
[329139527,1718133038834,-151.99,0.00021387,2]
[329139528,1718133038845,-150.88474258,0.0002139,3]
[329139529,1718133038855,-151.0,0.0002139,2]
[329139530,1718133038866,-157.006058,0.0002139,2]
[329139531,1718133038876,-151.0,0.0002139,2]
[329139532,1718133038887,-213.162486,0.0002139,2]
[329139533,1718133038897,-151.0,0.0002139,2]
[329139534,1718133038908,-151.0,0.0002139,2]
[329139535,1718133038918,-151.0,0.0002139,2]
[329139536,1718133038928,-151.0,0.0002139,2]
[329139537,1718133038939,-151.0,0.0002139,2]
[329139538,1718133038950,-151.0,0.0002139,2]
[329139539,1718133038960,-151.0,0.0002139,2]
[329139540,1718133038971,-151.0,0.0002139,2]
[329139541,1718133038982,-151.0,0.0002139,2]
[329139542,1718133038992,-151.0,0.0002139,2]
[329139543,1718133039004,-151.0,0.0002139,2]
[329139544,1718133039014,-151.0,0.0002139,2]
[329139545,1718133039025,-300.783705,0.0002139,2]
[329139547,1718133039035,-151.0,0.0002139,2]
[329139548,1718133039047,-151.0,0.0002139,2]
[329139549,1718133039057,-151.0,0.0002139,2]
[329139550,1718133039067,-151.0,0.0002139,2]
[329139551,1718133039078,-151.0,0.0002139,2]
[329139552,1718133039088,-291.852763,0.0002139,2]
[329139553,1718133039099,-291.852763,0.0002139,2]
[329139554,1718133039109,-151.0,0.0002139,2]
[329139555,1718133039120,-151.0,0.0002139,2]
[329139556,1718133039129,-177.727756,0.0002139,2]
[329139557,1718133039139,-177.727756,0.0002139,2]
[329139559,1718133039149,-161.566814,0.0002139,2]
[329139561,1718133039159,-161.566814,0.0002139,2]
[329139563,1718133039169,-151.0,0.0002139,2]
[329139565,1718133039179,-151.0,0.0002139,2]
[329139567,1718133039189,-151.0,0.0002139,2]
[329139569,1718133039201,-151.0,0.0002139,2]
[329139571,1718133039212,-221.0067,0.0002139,2]
[329139573,1718133039222,-221.0067,0.0002139,2]
[329139575,1718133039232,-151.0,0.0002139,2]
[329139577,1718133039242,-151.0,0.0002139,2]
[329139579,1718133039252,-2231.578446,0.0002139,2]
[329139581,1718133039263,-2231.578446,0.0002139,2]
[329139583,1718133039273,-151.0,0.0002139,2]
[329139585,1718133039283,-151.0,0.0002139,2]
[329139587,1718133039294,-151.0,0.0002139,2]
[329139589,1718133039305,-151.0,0.0002139,2]
[329139591,1718133039316,-151.0,0.0002139,2]
[329139593,1718133039326,-151.0,0.0002139,2]
[329139595,1718133039336,-151.0,0.0002139,2]
[329139597,1718133039345,-151.0,0.0002139,2]
[329139599,1718133039355,-151.0,0.0002139,2]
[329139601,1718133039366,-151.0,0.0002139,2]
[329139603,1718133039376,-151.0,0.0002139,2]
[329139604,1718133039394,-151.0,0.0002139,2]
[329139606,1718133039407,-118783.68870487,0.0002139,3]
[329139611,1718133039448,-1068.1986391,0.0002139,3]
[329139622,1718133039917,-1603.2000001,0.0002139,3]
[329139623,1718133039929,-363.3164253,0.0002139,3]
[329139645,1718133040725,-121895.86723439,0.0002139,3]
[329139646,1718133040737,-150.88474258,0.00021396,3]
[329139647,1718133040748,-66661.16830748,0.00021397,3]
[329139648,1718133040986,-3020.47,0.00021397,3]
[329139667,1718133043940,-1294.59699274,0.00010954,2]
[329139698,1718133047184,-8.17020157,0.00010954,2]
[329139699,1718133047195,-3369.49144835,0.00017259,2]
[329139700,1718133047207,-187.94831516,0.00017259,2]
[329139701,1718133047216,-155.0,0.00017259,2]
[329139702,1718133047227,-960.37550639,0.00017259,2]
[329139703,1718133047236,-2000.25333624,0.00017259,2]
[329139704,1718133047246,-158.15942897,0.00017259,2]
[329139705,1718133047257,-673.23659193,0.00017259,2]
[329139706,1718133047268,-554.57156541,0.00017259,2]
[329139707,1718133047278,-1895.6260326,0.00017259,2]
[329139708,1718133047288,-545.75067402,0.00017259,2]
[329139709,1718133047298,-150.0,0.00020934,2]
[329139710,1718133047308,-151.0,0.0002139,2]
[329139711,1718133047318,-279.12101253,0.00021396,2]
[329139712,1718133047328,-320.74616453,0.00021396,2]
[329139713,1718133047338,-1253.59956446,0.00021396,2]
[329139714,1718133047347,-200.67332705,0.00021396,2]
[329139715,1718133047357,-424.65789718,0.00021396,2]
[329139716,1718133047367,-30166.41912174,0.00021397,3]
[329139722,1718133238125,4600.0,0.00010857,2]
[329139725,1718133280634,400.0,0.00010857,2]
[329139726,1718133280661,10.83715221,0.00010857,2]
[329139727,1718133298409,410.83715221,0.00010857,2]
[329139728,1718133314539,226.13513141,0.00010857,2]
[329139731,1718133881262,184.75301057,0.00011992,2]
[329139733,1718134037183,-163.3366024,0.0001207,2]
[329139734,1718134037209,-155.0,0.00012071,2]
[329139735,1718134037234,-2351.166636,0.00012072,2]
[329139736,1718134037258,-345.77981054,0.00012072,2]
[329139737,1718134037282,-150.0,0.00012072,2]
[329139738,1718134037306,-334.29552451,0.00012073,2]
[329139739,1718134037331,-2138.57685314,0.00012073,2]
[329139740,1718134037355,-296.86150818,0.00012073,2]
[329139741,1718134037379,-328.09103155,0.00012074,2]
[329139742,1718134037402,-645.94306177,0.00012074,2]
[329139743,1718134037427,-166.69758772,0.00012074,2]
[329139744,1718134037452,-2195.01899183,0.00012074,2]
[329139745,1718134037477,-205.70870175,0.00012075,2]
[329139746,1718134037502,-506.89879856,0.00012075,2]
[329139747,1718134037528,-201.70944499,0.00012075,2]
[329139748,1718134037553,-364.20577069,0.00012076,2]
[329139749,1718134037578,-162.67638864,0.00012076,2]
[329139750,1718134037605,-263.89187326,0.00012076,2]
[329139751,1718134037638,-283.00457355,0.00012076,2]
[329139752,1718134037662,-155.0,0.00012076,2]
[329139753,1718134037687,-268.79574159,0.00012077,2]
[329139754,1718134037718,-155.0,0.00012077,2]
[329139755,1718134037742,-525.50104401,0.00012077,2]
[329139756,1718134037770,-161.63825425,0.00012078,2]
[329139757,1718134037803,-20985.26909921,0.00012081,2]
[329139758,1718134037827,-1467.0,0.00012092,2]
[329139759,1718134037853,-1000.0,0.00012094,2]
[329139760,1718134037878,-4754.9402,0.00012127,2]
[329139761,1718134037904,-499.99,0.00012239,2]
[329139762,1718134037929,-210.0,0.00013279,2]
[329139763,1718134037955,-293.0,0.00014607,2]
[329139764,1718134037978,-150.99,0.00014832,2]
[329139765,1718134038003,-203.0,0.00016068,2]
[329139766,1718134038028,-560.75,0.00016424,2]
[329139767,1718134038053,-155.32932128,0.00017258,2]
[329139768,1718134038076,-268.7861636,0.00017258,2]
[329139769,1718134038099,-658.7426153,0.00017258,2]
[329139770,1718134038127,-1452.84,0.00017708,2]
[329139771,1718134038152,-2670.91,0.00017811,2]
[329139772,1718134038175,-200.0,0.00017842,2]
[329139773,1718134038199,-1459.6,0.00017916,2]
[329139774,1718134038223,-408.52,0.0001801,2]
[329139775,1718134038249,-170.26,0.00018072,2]
[329139776,1718134038273,-250.0,0.00018089,2]
[329139777,1718134038298,-170.26,0.00018121,2]
[329139778,1718134038323,-170.26,0.00018171,2]
[329139779,1718134038347,-500.0,0.00018171,2]
[329139780,1718134038369,-851.94,0.00018185,2]
[329139781,1718134038395,-170.26,0.0001822,2]
[329139782,1718134038419,-170.26,0.0001827,2]
[329139783,1718134038444,-170.26,0.0001832,2]
[329139784,1718134038470,-200.0,0.00018342,2]
[329139785,1718134038496,-170.26,0.00018369,2]
[329139786,1718134038520,-170.26,0.00018419,2]
[329139787,1718134038545,-170.26,0.00018468,2]
[329139788,1718134038570,-170.26,0.00018518,2]
[329139789,1718134038596,-1000.0,0.00018539,2]
[329139790,1718134038621,-196.38,0.00018539,2]
[329139791,1718134038646,-170.26,0.00018567,2]
[329139792,1718134038673,-170.26,0.00018617,2]
[329139793,1718134038700,-170.26,0.00018667,2]
[329139794,1718134038728,-250.0,0.00018669,2]
[329139795,1718134038756,-560.75,0.00018688,2]
[329139796,1718134038786,-170.26,0.00018716,2]
[329139797,1718134038826,-170.26,0.00018766,2]
[329139798,1718134038854,-774.0,0.000188,2]
[329139799,1718134038878,-2458.0,0.000188,2]
[329139800,1718134038906,-170.26,0.00018815,2]
[329139801,1718134038935,-170.26,0.00018865,2]
[329139802,1718134038963,-170.26,0.00018914,2]
[329139803,1718134038989,-170.26,0.00018964,2]
[329139804,1718134039015,-170.26,0.00019013,2]
[329139805,1718134039041,-758.24390293,0.00019255,2]
[329139806,1718134039070,-23900.0,0.00019387,2]
[329139807,1718134039094,-820.52253541,0.0001945,2]
[329139808,1718134039123,-500.0,0.00019451,2]
[329139809,1718134039151,-211.01184066,0.00019451,2]
[329139810,1718134039176,-226.7178388,0.000201,2]
[329139811,1718134039200,-364.45870332,0.00020122,2]
[329139812,1718134039229,-262.96555812,0.00020123,2]
[329139813,1718134039255,-561.65317785,0.00020124,2]
[329139814,1718134039281,-1414.06407136,0.00020325,2]
[329139815,1718134039308,-1452.84,0.00020448,2]
[329139816,1718134039332,-11544.0,0.000205,3]
[329139817,1718134039357,-150.0,0.00020578,2]
[329139818,1718134039382,-529.86,0.00020578,2]
[329139819,1718134039408,-172.13,0.00020687,2]
[329139820,1718134039437,-1000.0,0.00020857,2]
[329139821,1718134039465,-400.0,0.000209,7]
[329139822,1718134039489,-150.0,0.00020904,2]
[329139823,1718134039513,-150.0,0.00020904,2]
[329139824,1718134039539,-269.12,0.00020932,2]
[329139825,1718134039565,-844.69,0.00020932,2]
[329139826,1718134039591,-150.0,0.00020932,2]
[329139827,1718134039624,-235.86,0.00020932,2]
[329139828,1718134041269,-300.0,0.00020932,2]
[329139829,1718134041296,-906.85,0.00020932,2]
[329139830,1718134041324,-300.0,0.00020932,2]
[329139831,1718134041351,-706.33,0.00020932,2]
[329139832,1718134041376,-330.93,0.00020932,2]
[329139833,1718134041402,-526.55,0.00020934,2]
[329139834,1718134041430,-150.0,0.00020934,2]
[329139835,1718134041458,-150.0,0.00020934,2]
[329139836,1718134041485,-422.78,0.00020934,2]
[329139837,1718134041510,-422.78,0.00020934,2]
[329139838,1718134041537,-1003.31,0.00020934,2]
[329139839,1718134041564,-239.42,0.00020934,2]
[329139840,1718134041588,-150.0,0.00020934,2]
[329139841,1718134041617,-422.78,0.00020934,2]
[329139842,1718134041641,-150.0,0.00020934,2]
[329139843,1718134041667,-164.25,0.00020934,2]
[329139844,1718134041693,-150.0,0.00020934,2]
[329139845,1718134041722,-422.39,0.00020934,2]
[329139846,1718134041750,-150.0,0.00020934,2]
[329139847,1718134041781,-164.25,0.00020934,2]
[329139848,1718134041821,-150.0,0.00020934,2]
[329139849,1718134041848,-150.0,0.00020934,2]
[329139850,1718134041872,-150.0,0.00020934,2]
[329139851,1718134041897,-842.48,0.00020934,2]
[329139852,1718134041920,-150.0,0.00020934,2]
[329139853,1718134041949,-422.78,0.00020934,2]
[329139854,1718134041975,-422.78,0.00020934,2]